fUSD/lending_fUSD_20250110
["ID","MTS","AMOUNT","RATE_DAILY","PERIOD"]
[348380912,1736485852703,-151.0,0.00010959,2]
[348380913,1736485853024,-151.0,0.00010959,2]
[348380914,1736485853050,-151.0,0.00010959,2]
[348380915,1736485853062,-151.0,0.00010959,2]
[348380916,1736485853071,-151.0,0.00010959,2]
[348380917,1736485853081,-151.0,0.00010959,2]
[348380918,1736485853090,-151.0,0.00010959,2]
[348380919,1736485853099,-151.0,0.00010959,2]
[348380920,1736485853110,-151.0,0.00010959,2]
[348380921,1736485853119,-151.0,0.00010959,2]
[348380922,1736485853128,-151.0,0.00010959,2]
[348380923,1736485853137,-151.0,0.00010959,2]
[348380924,1736485853147,-151.0,0.00010959,2]
[348380925,1736485853156,-151.0,0.00010959,2]
[348380926,1736485853165,-151.0,0.00010959,2]
[348380927,1736485853175,-151.0,0.00010959,2]
[348380928,1736485853184,-151.0,0.00010959,2]
[348380929,1736485853195,-151.0,0.00010959,2]
[348380930,1736485853205,-151.0,0.00010959,2]
[348380931,1736485853214,-151.0,0.00010959,2]
[348380932,1736485853223,-151.0,0.00010959,2]
[348380933,1736485853232,-151.0,0.00010959,2]
[348380934,1736485853240,-151.0,0.00010959,2]
[348380935,1736485853249,-151.0,0.00010959,2]
[348380936,1736485853258,-151.0,0.00010959,2]
[348380937,1736485853267,-151.0,0.00010959,2]
[348380938,1736485853276,-151.0,0.00010959,2]
[348380939,1736485853285,-151.0,0.00010959,2]
[348380940,1736485853294,-151.0,0.00010959,2]
[348380941,1736485853302,-151.0,0.00010959,2]
[348380942,1736485853311,-151.0,0.00010959,2]
[348380943,1736485853320,-151.0,0.00010959,2]
[348380944,1736485853331,-151.0,0.00010959,2]
[348380945,1736485853344,-151.0,0.00010959,2]
[348380946,1736485853355,-151.0,0.00010959,2]
[348380947,1736485853364,-151.0,0.00010959,2]
[348380948,1736485853373,-151.0,0.00010959,2]
[348380949,1736485853382,-151.0,0.00010959,2]
[348380950,1736485853393,-151.0,0.00010959,2]
[348380951,1736485853403,-151.0,0.00010959,2]
[348380952,1736485853414,-151.0,0.00010959,2]
[348380953,1736485853426,-151.0,0.00010959,2]
[348380954,1736485853437,-151.0,0.00010959,2]
[348380955,1736485853447,-151.0,0.00010959,2]
[348380956,1736485853457,-151.0,0.00010959,2]
[348380957,1736485853467,-151.0,0.00010959,2]
[348380958,1736485853476,-151.0,0.00010959,2]
[348380959,1736485853485,-151.0,0.00010959,2]
[348380960,1736485853495,-151.0,0.00010959,2]
[348380961,1736485853506,-151.0,0.00010959,2]
[348380962,1736485853515,-151.0,0.00010959,2]
[348380963,1736485853525,-151.0,0.00010959,2]
[348380964,1736485853535,-151.0,0.00010959,2]
[348380965,1736485853544,-151.0,0.00010959,2]
[348380966,1736485853554,-151.0,0.00010959,2]
[348380967,1736485853565,-222.0,0.00010959,2]
[348380968,1736485853576,-2242.29,0.00010959,2]
[348380969,1736485853587,-150.0,0.00010959,2]
[348380970,1736485853597,-915.35999254,0.00010968,2]
[348380971,1736485853607,-4106.14195184,0.00010969,2]
[348380972,1736485853618,-1058.0,0.0001098,2]
[348380973,1736485853628,-520.0,0.00010985,2]
[348380974,1736485853639,-500.0,0.00010986,2]
[348380975,1736485853650,-240.0,0.00010997,2]
[348380976,1736485853660,-7500.0,0.00010999,2]
[348380977,1736485853670,-190.0,0.00011,3]
[348380978,1736485853679,-190.0,0.00011,4]
[348380979,1736485853689,-190.0,0.00011,6]
[348380980,1736485853701,-48380.69149756,0.00011,2]
[348380981,1736485853711,-2591.59793103,0.00011,2]
[348380982,1736485853723,-132296.7984146,0.00011,2]
[348380983,1736485853734,-3202.38728238,0.00011,2]
[348380984,1736485853744,-550.0,0.00011,2]
[348380985,1736485853754,-150.0,0.00011008,2]
[348380986,1736485853764,-150.0,0.00011008,2]
[348380987,1736485853775,-150.0,0.00011008,2]
[348380988,1736485853785,-150.0,0.00011008,2]
[348380989,1736485853795,-3652.90957638,0.00011008,2]
[348380990,1736485853804,-2372.95981381,0.00011008,2]
[348380991,1736485853814,-989.11937961,0.00011008,2]
[348380992,1736485853825,-1509.63422267,0.00011008,2]
[348380993,1736485853836,-520.0,0.00011013,2]
[348380994,1736485853845,-4106.14195184,0.00011038,2]
[348380995,1736485853855,-520.0,0.0001104,2]
[348380996,1736485853865,-150.0,0.00011047,2]
[348380997,1736485853874,-150.0,0.00011047,2]
[348380998,1736485853883,-150.41201299,0.00011047,2]
[348380999,1736485853892,-150.10259345,0.00011047,2]
[348381000,1736485853902,-150.0,0.00011047,2]
[348381001,1736485853911,-284.50599283,0.00011047,2]
[348381002,1736485853920,-168.93819314,0.00011047,2]
[348381003,1736485853930,-150.0,0.00011047,2]
[348381004,1736485853939,-150.17197975,0.00011047,2]
[348381005,1736485853949,-158.7550343,0.00011047,2]
[348381006,1736485853962,-171.75084966,0.00011047,2]
[348381007,1736485853971,-150.10418721,0.00011047,2]
[348381008,1736485853981,-150.0,0.00011047,2]
[348381009,1736485853991,-150.0,0.00011059,2]
[348381010,1736485854001,-520.0,0.00011068,2]
[348381011,1736485854011,-150.0,0.00011081,2]
[348381012,1736485854021,-151.0,0.00011087,2]
[348381013,1736485854030,-1118.49792766,0.00011092,3]
[348381014,1736485854039,-500.0,0.00011092,2]
[348381015,1736485854049,-830.78,0.00011092,2]
[348381016,1736485854058,-986.39,0.00011092,2]
[348381017,1736485854068,-1171.11,0.00011092,2]
[348381018,1736485854077,-789.43,0.00011092,2]
[348381019,1736485854087,-928.95,0.00011092,2]
[348381020,1736485854096,-935.11,0.00011092,2]
[348381021,1736485854106,-1179.99,0.00011092,2]
[348381022,1736485854115,-1222.87,0.00011092,2]
[348381023,1736485854124,-500.0,0.00011092,2]
[348381024,1736485854134,-1043.32,0.00011092,2]
[348381025,1736485854143,-1000.0,0.00011092,2]
[348381026,1736485854152,-2469.85,0.00011092,2]
[348381027,1736485854161,-1184.09,0.00011092,2]
[348381028,1736485854171,-984.96,0.00011092,2]
[348381029,1736485854180,-774.76,0.00011092,2]
[348381030,1736485854190,-987.59,0.00011092,2]
[348381031,1736485854199,-1658.41,0.00011092,2]
[348381032,1736485854208,-2058.34,0.00011092,2]
[348381033,1736485854217,-1289.09,0.00011092,2]
[348381034,1736485854226,-500.0,0.00011092,2]
[348381035,1736485854236,-500.0,0.00011092,2]
[348381036,1736485854245,-768.63,0.00011092,2]
[348381037,1736485854254,-500.0,0.00011092,2]
[348381038,1736485854265,-1495.58,0.00011092,2]
[348381039,1736485854274,-500.0,0.00011092,2]
[348381040,1736485854284,-2242.54,0.00011092,2]
[348381041,1736485854293,-2213.99,0.00011092,2]
[348381042,1736485854302,-709.35,0.00011092,2]
[348381043,1736485854311,-782.19,0.00011092,2]
[348381044,1736485854321,-2285.23,0.00011092,2]
[348381045,1736485854331,-500.0,0.00011093,2]
[348381046,1736485854345,-500.0,0.00011093,2]
[348381047,1736485854356,-1123.38,0.00011093,2]
[348381048,1736485854366,-500.0,0.00011093,2]
[348381049,1736485854376,-500.0,0.00011093,2]
[348381050,1736485854387,-627.85,0.00011093,2]
[348381051,1736485854397,-500.0,0.00011093,2]
[348381052,1736485854407,-500.0,0.00011093,2]
[348381053,1736485854417,-500.0,0.00011093,2]
[348381054,1736485854426,-500.0,0.00011093,2]
[348381055,1736485854436,-887.68,0.00011093,2]
[348381056,1736485854445,-500.0,0.00011093,2]
[348381057,1736485854454,-639.22,0.00011093,2]
[348381058,1736485854464,-769.91,0.00011093,2]
[348381059,1736485854473,-500.0,0.00011093,2]
[348381060,1736485854483,-500.0,0.00011093,2]
[348381061,1736485854492,-742.36,0.00011093,2]
[348381062,1736485854501,-500.0,0.00011093,2]
[348381063,1736485854510,-420.78236061,0.00011093,2]
[348381064,1736485854519,-500.0,0.00011093,2]
[348381065,1736485854528,-582.68,0.00011093,2]
[348381066,1736485854538,-500.0,0.00011093,2]
[348381067,1736485854547,-784.36,0.00011093,2]
[348381068,1736485854556,-500.0,0.00011093,2]
[348381069,1736485854566,-774.75,0.00011093,2]
[348381070,1736485854575,-500.0,0.00011093,2]
[348381071,1736485854584,-500.0,0.00011093,2]
[348381072,1736485854594,-500.0,0.00011093,2]
[348381073,1736485854603,-500.0,0.00011093,2]
[348381074,1736485854613,-500.0,0.00011093,2]
[348381075,1736485854623,-500.0,0.00011093,2]
[348381076,1736485854632,-500.0,0.00011093,2]
[348381077,1736485854642,-745.91,0.00011093,2]
[348381078,1736485854651,-500.0,0.00011093,2]
[348381079,1736485854662,-529.14,0.00011093,2]
[348381080,1736485854673,-544.93,0.00011093,2]
[348381081,1736485854682,-500.0,0.00011093,2]
[348381082,1736485854694,-743.07,0.00011093,2]
[348381083,1736485854704,-500.0,0.00011093,2]
[348381084,1736485854714,-500.0,0.00011093,2]
[348381085,1736485854724,-758.33,0.00011093,2]
[348381086,1736485854734,-500.0,0.00011093,2]
[348381087,1736485854745,-500.0,0.00011093,2]
[348381088,1736485854755,-631.41,0.00011093,2]
[348381089,1736485854766,-806.17,0.00011093,2]
[348381090,1736485854776,-751.42,0.00011093,2]
[348381091,1736485854785,-500.0,0.00011093,2]
[348381092,1736485854797,-500.0,0.00011093,2]
[348381093,1736485854809,-809.57,0.00011093,2]
[348381094,1736485854818,-764.18,0.00011093,2]
[348381095,1736485854827,-541.73,0.00011093,2]
[348381096,1736485854837,-882.65,0.00011093,2]
[348381097,1736485854846,-665.92,0.00011093,2]
[348381098,1736485854856,-500.0,0.00011093,2]
[348381099,1736485854866,-500.0,0.00011093,2]
[348381100,1736485854875,-500.0,0.00011093,2]
[348381101,1736485854885,-751.87,0.00011093,2]
[348381102,1736485854894,-782.38,0.00011093,2]
[348381103,1736485854904,-589.61,0.00011093,2]
[348381104,1736485854913,-540.49,0.00011093,2]
[348381105,1736485854924,-571.58,0.00011093,2]
[348381106,1736485854934,-713.83,0.00011093,2]
[348381107,1736485854944,-665.21,0.00011093,2]
[348381108,1736485854955,-734.51,0.00011093,2]
[348381109,1736485854964,-500.0,0.00011093,2]
[348381110,1736485854974,-500.0,0.00011093,2]
[348381111,1736485854984,-500.0,0.00011093,2]
[348381112,1736485854994,-535.18,0.00011093,2]
[348381113,1736485855004,-7500.0,0.00011093,2]
[348381114,1736485855013,-781.63,0.00011093,2]
[348381115,1736485855023,-1631.88,0.00011093,2]
[348381116,1736485855033,-629.89,0.00011093,2]
[348381117,1736485855043,-500.0,0.00011093,2]
[348381118,1736485855052,-1563.89,0.00011093,2]
[348381119,1736485855061,-706.08,0.00011093,2]
[348381120,1736485855071,-1621.74,0.00011093,2]
[348381121,1736485855080,-600.7,0.00011093,2]
[348381122,1736485855090,-571.16,0.00011093,2]
[348381123,1736485855099,-1061.94,0.00011093,2]
[348381124,1736485855109,-1081.89,0.00011093,2]
[348381125,1736485855119,-2953.75,0.00011093,2]
[348381126,1736485855128,-500.0,0.00011093,2]
[348381127,1736485855138,-1036.81,0.00011093,2]
[348381128,1736485855148,-500.0,0.00011093,2]
[348381129,1736485855158,-711.64,0.00011093,2]
[348381130,1736485855168,-726.71,0.00011093,2]
[348381131,1736485855177,-791.12,0.00011093,2]
[348381132,1736485855187,-500.0,0.00011093,2]
[348381133,1736485855196,-488.181607,0.00011093,2]
[348381134,1736485855206,-2512.42,0.00011093,2]
[348381135,1736485855215,-1270.51,0.00011093,2]
[348381136,1736485855224,-861.19,0.00011093,2]
[348381137,1736485855234,-978.38,0.00011093,2]
[348381138,1736485855243,-560.89,0.00011093,2]
[348381139,1736485855252,-500.0,0.00011093,2]
[348381140,1736485855262,-855.48,0.00011093,2]
[348381141,1736485855271,-1540.33,0.00011093,2]
[348381142,1736485855282,-985.69,0.00011093,2]
[348381143,1736485855291,-791.97,0.00011093,2]
[348381144,1736485855300,-481.684011,0.00011093,2]
[348381145,1736485855309,-1720.38,0.00011093,2]
[348381146,1736485855319,-1238.08,0.00011093,2]
[348381147,1736485855328,-500.0,0.00011093,2]
[348381148,1736485855337,-897.12,0.00011093,2]
[348381149,1736485855351,-3237.46,0.00011093,2]
[348381150,1736485855360,-716.16,0.00011093,2]
[348381151,1736485855369,-679.51,0.00011093,2]
[348381152,1736485855379,-636.34,0.00011093,2]
[348381153,1736485855388,-500.0,0.00011093,2]
[348381154,1736485855397,-2756.52,0.00011093,2]
[348381155,1736485855407,-500.0,0.00011093,2]
[348381156,1736485855417,-509.5,0.00011093,2]
[348381157,1736485855426,-527.85738992,0.00011093,2]
[348381158,1736485855436,-668.18,0.00011093,2]
[348381159,1736485855445,-500.0,0.00011093,2]
[348381160,1736485855455,-500.0,0.00011093,2]
[348381161,1736485855464,-1363.06,0.00011093,2]
[348381162,1736485855474,-916.73,0.00011093,2]
[348381163,1736485855483,-931.51,0.00011093,2]
[348381164,1736485855492,-500.0,0.00011093,2]
[348381165,1736485855502,-833.46,0.00011093,2]
[348381166,1736485855511,-500.0,0.00011093,2]
[348381167,1736485855520,-648.63,0.00011093,2]
[348381168,1736485855530,-1563.25,0.00011093,2]
[348381169,1736485855539,-715.62,0.00011093,2]
[348381170,1736485855549,-500.0,0.00011093,2]
[348381171,1736485855558,-684.13,0.00011093,2]
[348381172,1736485855568,-1315.2,0.00011093,2]
[348381173,1736485855577,-1063.94,0.00011093,2]
[348381174,1736485855586,-500.0,0.00011093,2]
[348381175,1736485855595,-843.01,0.00011093,2]
[348381176,1736485855604,-500.0,0.00011093,2]
[348381177,1736485855613,-650.08,0.00011093,2]
[348381178,1736485855623,-572.46,0.00011093,2]
[348381179,1736485855633,-681.82,0.00011093,2]
[348381180,1736485855644,-2208.62,0.00011093,2]
[348381181,1736485855656,-500.0,0.00011093,2]
[348381182,1736485855666,-884.01,0.00011093,2]
[348381183,1736485855677,-572.56,0.00011093,2]
[348381184,1736485855686,-570.27,0.00011093,2]
[348381185,1736485855699,-524.1,0.00011093,2]
[348381186,1736485855709,-500.0,0.00011093,2]
[348381187,1736485855720,-500.0,0.00011093,2]
[348381188,1736485855731,-500.0,0.00011093,2]
[348381189,1736485855742,-500.0,0.00011093,2]
[348381190,1736485855752,-576.32,0.00011093,2]
[348381191,1736485855763,-703.29,0.00011093,2]
[348381192,1736485855773,-327.63488019,0.00011093,2]
[348381193,1736485855784,-1363.99,0.00011093,2]
[348381194,1736485855794,-500.0,0.00011093,2]
[348381195,1736485855804,-500.0,0.00011093,2]
[348381196,1736485855813,-3399.4,0.00011093,2]
[348381197,1736485855822,-2731.96,0.00011093,2]
[348381198,1736485855834,-1114.08161821,0.00011094,3]
[348381199,1736485855843,-151.0,0.00011094,2]
[348381200,1736485855853,-151.0,0.00011094,2]
[348381201,1736485855863,-151.0,0.00011094,2]
[348381202,1736485855873,-500.0,0.00011094,2]
[348381203,1736485855882,-520.91,0.00011094,2]
[348381204,1736485855892,-500.0,0.00011094,2]
[348381205,1736485855902,-519.85,0.00011094,2]
[348381206,1736485855912,-500.0,0.00011094,2]
[348381207,1736485855923,-500.0,0.00011094,2]
[348381208,1736485855933,-699.0,0.00011094,2]
[348381209,1736485855943,-500.0,0.00011094,2]
[348381210,1736485855954,-500.0,0.00011094,2]
[348381211,1736485855965,-500.0,0.00011094,2]
[348381212,1736485855975,-574.69,0.00011094,2]
[348381213,1736485855984,-500.0,0.00011094,2]
[348381214,1736485855993,-500.0,0.00011094,2]
[348381215,1736485856003,-500.0,0.00011094,2]
[348381216,1736485856012,-203.17565923,0.00011094,2]
[348381217,1736485856022,-500.0,0.00011094,2]
[348381218,1736485856031,-620.37,0.00011094,2]
[348381219,1736485856041,-500.0,0.00011094,2]
[348381220,1736485856051,-500.0,0.00011094,2]
[348381221,1736485856061,-500.0,0.00011094,2]
[348381222,1736485856070,-500.0,0.00011094,2]
[348381223,1736485856079,-519.05,0.00011094,2]
[348381224,1736485856089,-500.0,0.00011094,2]
[348381225,1736485856098,-500.0,0.00011094,2]
[348381226,1736485856108,-500.0,0.00011094,2]
[348381227,1736485856117,-500.0,0.00011094,2]
[348381228,1736485856126,-500.0,0.00011094,2]
[348381229,1736485856136,-500.0,0.00011094,2]
[348381230,1736485856146,-500.0,0.00011094,2]
[348381231,1736485856155,-500.0,0.00011094,2]
[348381232,1736485856164,-500.0,0.00011094,2]
[348381233,1736485856310,-500.0,0.00011094,2]
[348381234,1736485856349,-500.0,0.00011094,2]
[348381235,1736485856359,-500.0,0.00011094,2]
[348381236,1736485856368,-500.0,0.00011094,2]
[348381237,1736485856377,-512.49,0.00011094,2]
[348381238,1736485856387,-548.71,0.00011094,2]
[348381239,1736485856397,-517.44,0.00011094,2]
[348381240,1736485856406,-638.71,0.00011094,2]
[348381241,1736485856415,-747.11,0.00011094,2]
[348381242,1736485856425,-500.0,0.00011094,2]
[348381243,1736485856434,-500.0,0.00011094,2]
[348381244,1736485856443,-500.0,0.00011094,2]
[348381245,1736485856452,-500.0,0.00011094,2]
[348381246,1736485856462,-500.0,0.00011094,2]
[348381247,1736485856471,-500.0,0.00011094,2]
[348381248,1736485856480,-776.6,0.00011094,2]
[348381249,1736485856489,-620.59,0.00011094,2]
[348381250,1736485856498,-796.51,0.00011094,2]
[348381251,1736485856508,-802.9,0.00011094,2]
[348381252,1736485856517,-500.0,0.00011094,2]
[348381253,1736485856526,-500.0,0.00011094,2]
[348381254,1736485856536,-546.03,0.00011094,2]
[348381255,1736485856546,-500.0,0.00011094,2]
[348381256,1736485856555,-591.26,0.00011094,2]
[348381257,1736485856564,-500.0,0.00011094,2]
[348381258,1736485856574,-500.0,0.00011094,2]
[348381259,1736485856583,-500.0,0.00011094,2]
[348381260,1736485856592,-500.0,0.00011094,2]
[348381261,1736485856602,-737.07,0.00011094,2]
[348381262,1736485856611,-500.0,0.00011094,2]
[348381263,1736485856620,-500.0,0.00011094,2]
[348381264,1736485856630,-592.26,0.00011094,2]
[348381265,1736485856639,-730.39,0.00011094,2]
[348381266,1736485856649,-252.13299924,0.00011094,2]
[348381267,1736485856657,-878.76,0.00011094,2]
[348381268,1736485856667,-625.64,0.00011094,2]
[348381269,1736485856676,-542.31,0.00011094,2]
[348381270,1736485856685,-825.5,0.00011094,2]
[348381271,1736485856694,-500.0,0.00011094,2]
[348381272,1736485856703,-500.0,0.00011094,2]
[348381273,1736485856712,-500.0,0.00011094,2]
[348381274,1736485856721,-1008.98,0.00011094,2]
[348381275,1736485856730,-649.97,0.00011094,2]
[348381276,1736485856740,-965.32,0.00011094,2]
[348381277,1736485856749,-525.70364385,0.00011094,2]
[348381278,1736485856758,-1051.3,0.00011094,2]
[348381279,1736485856768,-500.0,0.00011094,2]
[348381280,1736485856777,-638.06,0.00011094,2]
[348381281,1736485856787,-856.2,0.00011094,2]
[348381282,1736485856798,-520.0,0.00011095,2]
[348381283,1736485856808,-1000.0,0.00011095,2]
[348381284,1736485856818,-1000.0,0.00011095,2]
[348381285,1736485856827,-1000.0,0.00011095,2]
[348381286,1736485856837,-1000.0,0.00011095,2]
[348381287,1736485856847,-1000.0,0.00011095,2]
[348381288,1736485856857,-1000.0,0.00011095,2]
[348381289,1736485856867,-1000.0,0.00011095,2]
[348381290,1736485856878,-1003.63433543,0.00011095,2]
[348381291,1736485856888,-1000.0,0.00011095,2]
[348381292,1736485856899,-1000.0,0.00011095,2]
[348381293,1736485856909,-1000.0,0.00011095,2]
[348381294,1736485856918,-1000.0,0.00011095,2]
[348381295,1736485856929,-1000.0,0.00011095,2]
[348381296,1736485856939,-1000.0,0.00011095,2]
[348381297,1736485856949,-1000.0,0.00011095,2]
[348381298,1736485856959,-1000.0,0.00011095,2]
[348381299,1736485856969,-1000.0,0.00011095,2]
[348381300,1736485856979,-1000.0,0.00011095,2]
[348381301,1736485856988,-151.0,0.00011095,2]
[348381302,1736485856998,-2492.72,0.00011095,2]
[348381303,1736485857008,-1117.6,0.00011095,2]
[348381304,1736485857017,-2716.02,0.00011095,2]
[348381305,1736485857027,-1051.97,0.00011095,2]
[348381306,1736485857037,-942.9,0.00011095,2]
[348381307,1736485857047,-1386.35,0.00011095,2]
[348381308,1736485857057,-1345.32,0.00011095,2]
[348381309,1736485857067,-2039.72,0.00011095,2]
[348381310,1736485857077,-1211.66,0.00011095,2]
[348381311,1736485857087,-500.0,0.00011095,2]
[348381312,1736485857097,-4020.8,0.00011095,2]
[348381313,1736485857107,-500.0,0.00011095,2]
[348381314,1736485857117,-1742.2,0.00011095,2]
[348381315,1736485857126,-2381.68,0.00011095,2]
[348381316,1736485857135,-1409.32,0.00011095,2]
[348381317,1736485857145,-1787.14,0.00011095,2]
[348381318,1736485857154,-973.16,0.00011095,2]
[348381319,1736485857164,-1029.35,0.00011095,2]
[348381320,1736485857173,-1504.91,0.00011095,2]
[348381321,1736485857183,-2601.63,0.00011095,2]
[348381322,1736485857192,-1352.02,0.00011095,2]
[348381323,1736485857201,-2290.17,0.00011095,2]
[348381324,1736485857211,-962.88,0.00011095,2]
[348381325,1736485857220,-6045.19,0.00011095,2]
[348381326,1736485857229,-182.773188,0.00011095,2]
[348381327,1736485857239,-182.773188,0.00011095,2]
[348381328,1736485857248,-836.69,0.00011095,2]
[348381329,1736485857257,-1073.22,0.00011095,2]
[348381330,1736485857267,-1240.83,0.00011095,2]
[348381331,1736485857277,-739.05,0.00011095,2]
[348381332,1736485857286,-596.81,0.00011095,2]
[348381333,1736485857295,-830.3,0.00011095,2]
[348381334,1736485857304,-823.66,0.00011095,2]
[348381335,1736485857317,-1261.47,0.00011095,2]
[348381336,1736485857327,-7500.0,0.00011098,2]
[348381337,1736485857338,-33628.3874138,0.00011099,2]
[348381338,1736485857348,-33628.38741372,0.00011099,2]
[348381339,1736485857358,-33628.38741372,0.00011099,2]
[348381340,1736485857371,-33628.38741372,0.00011099,2]
[348381341,1736485857380,-33628.38741372,0.00011099,2]
[348381342,1736485857390,-169.61153603,0.00011099,2]
[348381343,1736485857399,-151.0,0.00011099,2]
[348381344,1736485857409,-151.0,0.00011099,2]
[348381345,1736485857418,-365.0,0.000111,2]
[348381346,1736485857428,-1000.0,0.000111,2]
[348381347,1736485857438,-231.0,0.000111,2]
[348381348,1736485857447,-4106.14195184,0.00011107,2]
[348381349,1736485857456,-150.0,0.00011115,2]
[348381350,1736485857466,-520.0,0.00011122,2]
[348381351,1736485857475,-150.0,0.00011128,2]
[348381352,1736485857484,-150.0,0.00011134,2]
[348381353,1736485857493,-150.0,0.00011149,2]
[348381354,1736485857502,-520.0,0.0001115,2]
[348381355,1736485857511,-151.0,0.00011166,2]
[348381356,1736485857521,-151.0,0.00011166,2]
[348381357,1736485857530,-151.0,0.00011167,2]
[348381358,1736485857539,-118741.41473734,0.00011168,2]
[348381359,1736485858290,-500.0,0.00010271,2]
[348381360,1736485858300,-600.1,0.00010271,2]
[348381361,1736485858310,-2382.11,0.00010273,2]
[348381362,1736485858319,-500.0,0.00010545,2]
[348381363,1736485858328,-2382.11,0.00010547,2]
[348381364,1736485858338,-500.0,0.00010819,2]
[348381365,1736485858347,-500.0,0.00011093,2]
[348381366,1736485858358,-4898.88364301,0.00011168,2]
[348381367,1736485858859,-749.74,9.999e-05,2]
[348381368,1736485858869,-500.0,0.00010271,2]
[348381369,1736485858878,-684.61052508,0.00010273,2]
[348381370,1736485858937,-65.12947492,0.00010273,2]
[348381371,1736485858948,-749.74,0.00010547,2]
[348381372,1736485858959,-2382.11,0.00010821,2]
[348381373,1736485858968,-2382.11,0.00011095,2]
[348381374,1736485858978,-13684.91052508,0.00011168,2]
[348381375,1736485858990,-269619.01529103,0.00011168,2]
[348381376,1736485859095,-385.626529,0.00011168,2]
[348381377,1736485871871,168.64,8.133e-05,2]
[348381378,1736486058195,-400.0,0.000143,31]
[348381379,1736486083200,-245.72222485,0.0002,60]
[348381380,1736486083227,-150.0,0.00020088,120]
[348381381,1736486083252,-4.27777515,0.00020802,120]
[348381382,1736486101513,-145.72222485,0.00020802,120]
[348381383,1736486101540,-254.27777515,0.00021,120]
[348381384,1736486121783,1262.2,8.219e-05,2]
[348381385,1736486250985,150.0,0.00014335,120]
[348381386,1736486310769,150.0,0.00018338,120]
[348381410,1736487018166,1199.09,8.219e-05,2]
[348381431,1736487031832,-250.0,9.562e-05,2]
[348381433,1736487031842,-262.89,9.584e-05,2]
[348381436,1736487031852,-212.66,9.627e-05,2]
[348381438,1736487031863,-1000.0,9.68e-05,2]
[348381439,1736487031872,-500.0,9.973e-05,2]
[348381440,1736487031882,-486.65428774,9.978e-05,2]
[348381441,1736487031892,-486.65428774,9.979e-05,2]
[348381442,1736487031901,-486.65428774,9.979e-05,2]
[348381443,1736487031911,-486.65428774,9.989e-05,2]
[348381444,1736487031921,-486.65428774,9.99e-05,2]
[348381445,1736487031931,-486.65428774,9.992e-05,2]
[348381446,1736487031941,-150.0,9.998e-05,2]
[348381447,1736487031950,-899.75,9.999e-05,2]
[348381448,1736487031960,-619.28,9.999e-05,2]
[348381449,1736487031970,-690.3,9.999e-05,2]
[348381450,1736487031979,-2129.54,9.999e-05,2]
[348381451,1736487031988,-500.0,9.999e-05,2]
[348381452,1736487031998,-795.31,9.999e-05,2]
[348381453,1736487032007,-1096.98,9.999e-05,2]
[348381454,1736487032016,-883.07,9.999e-05,2]
[348381455,1736487032026,-1104.82,9.999e-05,2]
[348381456,1736487032035,-500.0,9.999e-05,2]
[348381457,1736487032045,-1000.0,9.999e-05,2]
[348381458,1736487032055,-500.0,9.999e-05,2]